lending/lending_fUSD_20260310
["ID","MTS","AMOUNT","RATE_DAILY","PERIOD"]
[408147721,1773177038007,-822.30630435,0.00016035,2]
[408147722,1773177038017,-822.30630435,0.00016035,2]
[408147723,1773177038027,-822.30630435,0.00016035,2]
[408147724,1773177038036,-814.08324132,0.00016035,2]
[408147725,1773177038045,-814.08324132,0.00016035,2]
[408147726,1773177038054,-814.08324132,0.00016035,2]
[408147727,1773177038064,-814.08324132,0.00016035,2]
[408147728,1773177038074,-814.08324132,0.00016035,2]
[408147729,1773177038083,-814.08324132,0.00016035,2]
[408147730,1773177038092,-814.08324132,0.00016035,2]
[408147731,1773177038102,-814.08324132,0.00016035,2]
[408147732,1773177038111,-814.08324132,0.00016035,2]
[408147733,1773177038120,-814.08324132,0.00016035,2]
[408147734,1773177038130,-814.08324132,0.00016035,2]
[408147735,1773177038139,-814.08324132,0.00016035,2]
[408147736,1773177038149,-814.08324132,0.00016035,2]
[408147737,1773177038158,-814.08324132,0.00016035,2]
[408147738,1773177038167,-814.08324132,0.00016035,2]
[408147739,1773177038177,-814.08324132,0.00016035,2]
[408147740,1773177038186,-814.08324132,0.00016035,2]
[408147741,1773177038195,-814.08324132,0.00016035,2]
[408147742,1773177038204,-814.08324132,0.00016035,2]
[408147743,1773177038214,-814.08324132,0.00016035,2]
[408147745,1773177038223,-814.08324132,0.00016035,2]
[408147746,1773177038232,-814.08324132,0.00016035,2]
[408147748,1773177038242,-814.08324132,0.00016035,2]
[408147750,1773177038251,-814.08324132,0.00016035,2]
[408147751,1773177038260,-814.08324132,0.00016035,2]
[408147753,1773177038269,-788.64314002,0.00016035,2]
[408147755,1773177038278,-788.64314002,0.00016035,2]
[408147756,1773177038287,-788.64314002,0.00016035,2]
[408147758,1773177038297,-788.64314002,0.00016035,2]
[408147760,1773177038306,-788.64314002,0.00016035,2]
[408147762,1773177038315,-788.64314002,0.00016035,2]
[408147763,1773177038325,-788.64314002,0.00016035,2]
[408147765,1773177038334,-788.64314002,0.00016035,2]
[408147767,1773177038343,-788.64314002,0.00016035,2]
[408147768,1773177038352,-788.64314002,0.00016035,2]
[408147769,1773177038361,-788.64314002,0.00016035,2]
[408147770,1773177038370,-788.64314002,0.00016035,2]
[408147771,1773177038379,-788.64314002,0.00016035,2]
[408147772,1773177038389,-788.64314002,0.00016035,2]
[408147773,1773177038398,-788.64314002,0.00016035,2]
[408147774,1773177038407,-788.64314,0.00016035,2]
[408147775,1773177038416,-2500000.0,0.00016036,2]
[408147776,1773177038426,-808.85619682,0.00016064,2]
[408147777,1773177038436,-500.0,0.00016073,2]
[408147778,1773177038445,-500.0,0.00016073,2]
[408147779,1773177038454,-500.0,0.00016073,2]
[408147780,1773177038463,-500.0,0.00016073,2]
[408147781,1773177038472,-500.0,0.00016073,2]
[408147782,1773177038481,-500.0,0.00016073,2]
[408147783,1773177038490,-500.0,0.00016073,2]
[408147784,1773177038499,-500.0,0.00016073,2]
[408147785,1773177038509,-500.0,0.00016073,2]
[408147786,1773177038518,-196.35757159,0.00016073,2]
[408147787,1773177038528,-150.99,0.00016128,2]
[408147788,1773177038537,-313.56,0.00016128,2]
[408147789,1773177038546,-151.0,0.00016135,2]
[408147790,1773177038556,-2002.51929351,0.00016136,2]
[408147791,1773177038565,-299.99,0.00016136,4]
[408147792,1773177038574,-9999.99,0.00016136,2]
[408147793,1773177038584,-17930.59,0.00016136,2]
[408147794,1773177038593,-204.00372193,0.00016137,5]
[408147795,1773177038603,-1095.49569653,0.00016137,5]
[408147796,1773177038612,-500.0,0.00016137,2]
[408147797,1773177038621,-500.0,0.00016137,2]
[408147798,1773177038631,-500.0,0.00016137,2]
[408147799,1773177038642,-500.0,0.00016137,2]
[408147800,1773177038651,-500.0,0.00016137,2]
[408147801,1773177038660,-500.0,0.00016137,2]
[408147802,1773177038669,-500.0,0.00016137,2]
[408147803,1773177038679,-500.0,0.00016137,2]
[408147804,1773177038689,-500.0,0.00016137,2]
[408147805,1773177038698,-500.0,0.00016137,2]
[408147806,1773177038707,-500.0,0.00016137,2]
[408147807,1773177038717,-500.0,0.00016137,2]
[408147808,1773177038726,-500.0,0.00016137,2]
[408147809,1773177038736,-500.0,0.00016137,2]
[408147810,1773177038745,-509.45035815,0.00016137,2]
[408147811,1773177038754,-3946.204,0.00016137,2]
[408147812,1773177038764,-172.089,0.00016137,2]
[408147813,1773177038774,-500.0,0.00016137,2]
[408147814,1773177038783,-500.0,0.00016137,2]
[408147815,1773177038794,-500.0,0.00016137,2]
[408147816,1773177038804,-500.0,0.00016137,2]
[408147817,1773177038814,-500.0,0.00016137,2]
[408147818,1773177038823,-500.0,0.00016137,2]
[408147819,1773177038832,-500.0,0.00016137,2]
[408147820,1773177038841,-500.0,0.00016137,2]
[408147821,1773177038850,-500.0,0.00016137,2]
[408147822,1773177038860,-500.0,0.00016137,2]
[408147823,1773177038870,-500.0,0.00016137,2]
[408147824,1773177038880,-500.0,0.00016137,2]
[408147825,1773177038890,-500.0,0.00016137,2]
[408147826,1773177038900,-500.0,0.00016137,2]
[408147827,1773177038909,-500.0,0.00016137,2]
[408147828,1773177038919,-500.0,0.00016137,2]
[408147829,1773177038928,-500.0,0.00016137,2]
[408147830,1773177038937,-500.0,0.00016137,2]
[408147831,1773177038946,-500.0,0.00016137,2]
[408147832,1773177038958,-500.0,0.00016137,2]
[408147833,1773177038969,-500.0,0.00016137,2]
[408147834,1773177038979,-500.0,0.00016137,2]
[408147835,1773177038989,-500.0,0.00016137,2]
[408147836,1773177038998,-500.0,0.00016137,2]
[408147837,1773177039010,-500.0,0.00016137,2]
[408147838,1773177039019,-500.0,0.00016137,2]
[408147839,1773177039028,-530.0627847,0.00016137,2]
[408147840,1773177039037,-500.0,0.00016137,2]
[408147841,1773177039047,-500.0,0.00016137,2]
[408147842,1773177039056,-500.0,0.00016137,2]
[408147843,1773177039065,-500.0,0.00016137,2]
[408147844,1773177039075,-500.0,0.00016137,2]
[408147845,1773177039084,-500.0,0.00016137,2]
[408147846,1773177039098,-500.0,0.00016137,2]
[408147847,1773177039108,-396.38337772,0.00016137,2]
[408147848,1773177039119,-500.0,0.00016137,2]
[408147849,1773177039129,-500.0,0.00016137,2]
[408147850,1773177039139,-500.0,0.00016137,2]
[408147851,1773177039149,-504.92020981,0.00016137,2]
[408147852,1773177039158,-500.0,0.00016137,2]
[408147853,1773177039167,-500.0,0.00016137,2]
[408147854,1773177039176,-500.0,0.00016137,2]
[408147855,1773177039185,-350.0,0.00016164,2]
[408147856,1773177039195,-350.0,0.00016164,2]
[408147857,1773177039204,-303.80696665,0.00016164,2]
[408147858,1773177039213,-202.88923796,0.00016173,2]
[408147859,1773177039223,-500.37976244,0.00016173,2]
[408147860,1773177039232,-500.0,0.00016173,2]
[408147861,1773177039242,-500.0,0.00016173,2]
[408147862,1773177039251,-500.0,0.00016173,2]
[408147863,1773177039260,-5000.00392476,0.000162,5]
[408147864,1773177039270,-200.0,0.0001634,2]
[408147865,1773177039279,-166.66,0.00016423,2]
[408147866,1773177039288,-400.53,0.00016438,2]
[408147867,1773177039298,-340.067642,0.00016481,7]
[408147868,1773177039308,-808.8561968,0.0001649,2]
[408147869,1773177039317,-1347.65360053,0.00016526,2]
[408147870,1773177039327,-362.53227662,0.000166,2]
[408147871,1773177039336,-945.92650306,0.00016621,2]
[408147872,1773177039345,-1000.0,0.00016621,2]
[408147873,1773177039354,-1000.0,0.00016621,2]
[408147874,1773177039363,-164.11826784,0.00016721,2]
[408147875,1773177039373,-195.0,0.00016868,2]
[408147876,1773177039382,-300.0,0.00016868,2]
[408147877,1773177039391,-500.0,0.00016868,2]
[408147878,1773177039400,-2500.0,0.00016868,2]
[408147879,1773177039409,-367.1844389,0.00016868,2]
[408147880,1773177039419,-1141.66878426,0.00016868,2]
[408147881,1773177039428,-195.0,0.00016868,2]
[408147882,1773177039438,-195.0,0.00016868,2]
[408147883,1773177039447,-250.0,0.00016868,2]
[408147884,1773177039456,-193.0,0.00016868,2]
[408147885,1773177039465,-300.0,0.00016868,2]
[408147886,1773177039475,-195.0,0.00016868,2]
[408147887,1773177039485,-197.84836511,0.00016868,2]
[408147888,1773177039494,-2500.0,0.00016868,2]
[408147889,1773177039504,-2500.0,0.00016868,2]
[408147890,1773177039513,-2500.0,0.00016868,2]
[408147891,1773177039523,-2550.0,0.00016868,2]
[408147892,1773177039532,-193.0,0.00016868,2]
[408147893,1773177039543,-300.0,0.00016868,2]
[408147894,1773177039553,-648.96564869,0.00016868,2]
[408147895,1773177039563,-250.0,0.00016868,2]
[408147896,1773177039573,-194.33339666,0.000169,2]
[408147897,1773177039582,-808.8561968,0.00016916,2]
[408147898,1773177039593,-166.66,0.00016947,2]
[408147899,1773177039603,-50999.83673356,0.00017,2]
[408147900,1773177039612,-510.0,0.00017,2]
[408147901,1773177039623,-510.0,0.0001703,2]
[408147902,1773177039632,-1347.65360053,0.00017089,2]
[408147903,1773177039645,-1500.0,0.00017168,2]
[408147904,1773177039663,-500.0,0.00017168,2]
[408147905,1773177039678,-808.8561968,0.00017343,2]
[408147906,1773177039693,-1680.0,0.0001747,2]
[408147907,1773177039705,-166.66,0.00017472,2]
[408147908,1773177039719,-500.0,0.00017616,2]
[408147909,1773177039732,-1000.0,0.00017716,2]
[408147910,1773177039746,-2709.89,0.00017728,2]
[408147911,1773177039761,-2798.92,0.00017728,2]
[408147912,1773177039775,-808.8561968,0.00017769,2]
[408147913,1773177039787,-170.962384,0.00017858,2]
[408147914,1773177039799,-400.53,0.0001788,2]
[408147915,1773177039814,-166.66,0.00017997,2]
[408147916,1773177039827,-2733.999999,0.00018,5]
[408147917,1773177039842,-808.8561968,0.00018195,2]
[408147918,1773177039856,-500.0,0.00018198,2]
[408147919,1773177039869,-500.0,0.00018198,2]
[408147920,1773177039883,-688.0,0.00018224,2]
[408147921,1773177039896,-500.0,0.00018378,2]
[408147922,1773177039911,-500.0,0.00018378,2]
[408147923,1773177039924,-500.0,0.00018378,2]
[408147924,1773177039938,-500.0,0.00018378,2]
[408147925,1773177039952,-510.0,0.000184,3]
[408147926,1773177039966,-500.0,0.00018436,2]
[408147927,1773177039979,-166.66,0.00018522,2]
[408147928,1773177039995,-190.16,0.00018552,2]
[408147929,1773177040007,-808.8561968,0.00018621,2]
[408147930,1773177040021,-500.0,0.00018624,2]
[408147931,1773177040032,-187.0,0.00018629,2]
[408147932,1773177040044,-2666.0,0.00018689,2]
[408147933,1773177040056,-3204.54232898,0.00018741,2]
[408147934,1773177040072,-489.72,0.0001884,2]
[408147935,1773177040083,-187.0,0.00018841,2]
[408147936,1773177040094,-160.0,0.00018851,2]
[408147937,1773177040106,-172.91703981,0.00018851,2]
[408147938,1773177040120,-1815.03,0.0001887,2]
[408147939,1773177040135,-187.0,0.0001889,2]
[408147940,1773177040146,-222.52962526,0.00018899,3]
[408147941,1773177040157,-280.9122375,0.00018948,2]
[408147942,1773177040168,-2666.0,0.00018977,2]
[408147943,1773177040180,-500.0,0.00018999,2]
[408147944,1773177040192,-1428.38747117,0.00018999,2]
[408147945,1773177040203,-1500.0,0.00018999,2]
[408147946,1773177040215,-1008.65267046,0.00018999,2]
[408147947,1773177040227,-184.98336144,0.00018999,2]
[408147948,1773177040250,-151.0,0.00018999,2]
[408147949,1773177040262,-500.0,0.00018999,2]
[408147950,1773177040275,-174.61919141,0.00018999,2]
[408147951,1773177040288,-300.0,0.00018999,2]
[408147952,1773177040301,-243.08739965,0.00018999,2]
[408147953,1773177040313,-455.95,0.00019007,2]
[408147954,1773177040326,-808.8561968,0.00019048,2]
[408147955,1773177040338,-500.0,0.00019054,2]
[408147956,1773177040351,-151.0,0.00019054,2]
[408147957,1773177040364,-187.0,0.00019072,2]
[408147958,1773177040376,-500.0,0.00019109,2]
[408147959,1773177040388,-151.0,0.00019109,2]
[408147960,1773177040401,-250.0,0.00019123,2]
[408147961,1773177040414,-500.0,0.00019164,2]
[408147962,1773177040426,-151.0,0.00019164,2]
[408147963,1773177040438,-500.0,0.00019173,2]
[408147964,1773177040451,-500.0,0.00019173,2]
[408147965,1773177040463,-500.0,0.00019173,2]
[408147966,1773177040476,-500.0,0.00019173,2]
[408147967,1773177040488,-500.0,0.00019173,2]
[408147968,1773177040500,-500.0,0.00019173,2]
[408147969,1773177040513,-500.0,0.00019173,2]
[408147970,1773177040525,-500.0,0.00019173,2]
[408147971,1773177040538,-500.0,0.00019173,2]
[408147972,1773177040550,-500.0,0.00019173,2]
[408147973,1773177040562,-500.0,0.00019173,2]
[408147974,1773177040574,-500.0,0.00019173,2]
[408147975,1773177040587,-500.0,0.00019173,2]
[408147976,1773177040599,-500.0,0.00019173,2]
[408147977,1773177040611,-500.0,0.00019173,2]
[408147978,1773177040623,-500.0,0.00019173,2]
[408147979,1773177040636,-500.0,0.00019173,2]
[408147980,1773177040650,-500.0,0.00019173,2]
[408147981,1773177040663,-500.0,0.00019173,2]
[408147982,1773177040675,-3000.0,0.00019178,2]
[408147983,1773177040690,-3000.0,0.00019178,2]
[408147984,1773177040702,-3000.0,0.00019178,2]
[408147985,1773177040717,-3000.0,0.00019178,2]
[408147986,1773177040729,-3000.0,0.00019178,2]
[408147987,1773177040742,-3000.0,0.00019178,2]
[408147989,1773177040754,-3000.0,0.00019178,2]
[408147991,1773177040766,-3000.0,0.00019178,2]
[408147992,1773177040778,-3000.0,0.00019178,2]
[408147993,1773177040791,-3000.0,0.00019178,2]
[408147994,1773177040804,-3000.0,0.00019178,2]
[408147995,1773177040816,-787.0,0.00019178,2]
[408147996,1773177040828,-268.96748512,0.00019178,2]
[408147997,1773177040840,-2351.0,0.00019198,2]
[408147998,1773177040852,-168.0,0.00019203,2]
[408147999,1773177040864,-500.0,0.00019219,2]
[408148000,1773177040876,-151.0,0.00019219,2]
[408148001,1773177040888,-211.0,0.0001922,2]
[408148002,1773177040899,-500.0,0.00019233,7]
[408148003,1773177040911,-187.0,0.00019266,2]
[408148004,1773177040922,-500.0,0.00019274,2]
[408148005,1773177040934,-151.0,0.00019274,2]
[408148006,1773177040946,-1000.0,0.00019274,2]
[408148007,1773177040958,-3204.54232898,0.00019321,2]
[408148008,1773177040969,-400.53,0.00019322,2]
[408148009,1773177040981,-500.0,0.00019329,2]
[408148010,1773177040993,-151.0,0.00019329,2]
[408148011,1773177041005,-500.0,0.00019384,2]
[408148012,1773177041017,-151.0,0.00019384,2]
[408148013,1773177041029,-2000.0,0.000194,2]
[408148014,1773177041041,-1800.0,0.000194,7]
[408148015,1773177041053,-280.91223748,0.00019424,2]
[408148016,1773177041065,-500.0,0.00019439,2]
[408148017,1773177041077,-151.0,0.00019439,2]
[408148018,1773177041089,-168.0,0.00019442,2]
[408148019,1773177041101,-168.0,0.00019472,2]
[408148020,1773177041114,-808.8561968,0.00019474,2]
[408148021,1773177041126,-455.95,0.00019482,2]
[408148022,1773177041139,-153.36839608,0.00019489,2]
[408148023,1773177041151,-500.0,0.00019494,2]
[408148024,1773177041163,-151.0,0.00019494,2]
[408148025,1773177041175,-2000.0,0.000195,2]
[408148026,1773177041186,-300.0,0.000195,7]
[408148027,1773177041198,-500.0,0.00019507,7]
[408148028,1773177041210,-168.0,0.00019535,2]
[408148029,1773177041222,-390.37,0.00019546,2]
[408148030,1773177041234,-269.49635785,0.00019547,2]
[408148031,1773177041245,-1000.0,0.00019548,2]
[408148032,1773177041257,-500.0,0.00019549,2]
[408148033,1773177041269,-289.93018281,0.00019549,2]
[408148034,1773177041280,-250.0,0.00019551,2]
[408148035,1773177041292,-168.0,0.00019581,2]
[408148036,1773177041308,-3000.0,0.00019598,2]
[408148037,1773177041319,-500.0,0.00019599,2]
[408148038,1773177041331,-250.0,0.000196,2]
[408148039,1773177041344,-1147.38473165,0.000196,2]
[408148040,1773177041356,-1002.92796076,0.000196,2]
[408148041,1773177041367,-1012.2150532,0.000196,2]
[408148042,1773177041379,-1106.70762322,0.000196,2]
[408148043,1773177041391,-1031.94941706,0.000196,2]
[408148044,1773177041403,-1115.16801831,0.000196,2]
[408148045,1773177041415,-1141.56150479,0.000196,2]
[408148046,1773177041427,-1000.48738045,0.000196,2]
[408148047,1773177041439,-1035.47731451,0.000196,2]
[408148048,1773177041450,-1064.5157865,0.000196,2]
[408148049,1773177041462,-1119.27037719,0.000196,2]
[408148050,1773177041474,-1036.63551719,0.000196,2]
[408148051,1773177041486,-1042.19024556,0.000196,2]
[408148052,1773177041497,-1106.79072914,0.000196,2]
[408148053,1773177041509,-1068.83278242,0.000196,2]
[408148054,1773177041520,-1071.36562028,0.000196,2]
[408148055,1773177041533,-1080.98399749,0.000196,2]
[408148056,1773177041545,-1093.73351951,0.000196,2]
[408148057,1773177041557,-1145.00388519,0.000196,2]
[408148058,1773177041569,-1002.57790146,0.000196,2]
[408148059,1773177041580,-1061.92871666,0.000196,2]
[408148060,1773177041592,-1095.34109863,0.000196,2]
[408148061,1773177041603,-1016.49270699,0.000196,2]
[408148062,1773177041615,-1132.31503656,0.000196,2]
[408148063,1773177041627,-1116.39717946,0.000196,2]
[408148064,1773177041641,-1060.26397556,0.000196,2]
[408148065,1773177041653,-1428.35284987,0.000196,2]
[408148066,1773177041665,-2000.0,0.000196,2]
[408148067,1773177041678,-292.21,0.000196,30]
[408148068,1773177041690,-300.0,0.000196,7]
[408148069,1773177041701,-500.0,0.00019604,2]
[408148070,1773177041713,-250.0,0.00019625,2]
[408148071,1773177041725,-250.0,0.00019642,2]
[408148072,1773177041736,-1000.0,0.00019651,2]
[408148073,1773177041748,-500.0,0.00019659,2]
[408148074,1773177041760,-250.0,0.00019671,2]
[408148075,1773177041772,-800.0,0.00019675,2]
[408148076,1773177041785,-1000.0,0.000197,2]
[408148077,1773177041797,-300.0,0.000197,7]
[408148078,1773177041808,-250.0,0.00019711,2]
[408148079,1773177041819,-500.0,0.00019723,2]
[408148080,1773177041831,-500.0,0.00019723,2]
[408148081,1773177041843,-500.0,0.00019723,2]
[408148082,1773177041855,-500.0,0.00019723,2]
[408148083,1773177041866,-150.36304931,0.00019723,2]
[408148084,1773177041877,-152.81580585,0.00019723,2]
[408148085,1773177041888,-150.81923528,0.00019723,2]
[408148086,1773177041900,-500.0,0.00019723,2]
[408148087,1773177041911,-150.0,0.00019723,2]
[408148088,1773177041922,-250.0,0.00019726,2]
[408148089,1773177041934,-205.85838218,0.00019726,2]
[408148090,1773177041945,-500.0,0.00019726,2]
[408148091,1773177041956,-439.8301473,0.00019726,2]
[408148092,1773177041967,-1030.49,0.00019726,2]
[408148093,1773177041979,-1030.49,0.00019726,2]
[408148094,1773177041991,-1030.49,0.00019726,2]
[408148095,1773177042002,-1030.49,0.00019726,2]
[408148096,1773177042012,-1030.49,0.00019726,2]
[408148097,1773177042024,-1030.49,0.00019726,2]
[408148098,1773177042035,-1030.49,0.00019726,2]
[408148099,1773177042047,-1030.49,0.00019726,2]
[408148100,1773177042059,-1030.49,0.00019726,2]
[408148101,1773177042071,-1030.49,0.00019726,2]
[408148102,1773177042082,-1030.49,0.00019726,2]
[408148103,1773177042094,-1030.49,0.00019726,2]
[408148104,1773177042106,-1030.49,0.00019726,2]
[408148105,1773177042117,-1030.49,0.00019726,2]
[408148106,1773177042128,-1030.49,0.00019726,2]
[408148107,1773177042140,-1030.49,0.00019726,2]
[408148108,1773177042151,-1030.49,0.00019726,2]
[408148109,1773177042162,-1030.49,0.00019726,2]
[408148110,1773177042173,-1030.49,0.00019726,2]
[408148111,1773177042185,-1030.49,0.00019726,2]
[408148112,1773177042196,-1030.49,0.00019726,2]
[408148113,1773177042207,-1030.49,0.00019726,2]
[408148114,1773177042218,-1030.49,0.00019726,2]
[408148115,1773177042229,-1030.71,0.00019726,2]
[408148116,1773177042240,-500.0,0.00019726,2]
[408148117,1773177042251,-500.5,0.00019726,2]
[408148118,1773177042262,-1250.51,0.00019726,2]
[408148119,1773177042273,-1250.51,0.00019726,2]
[408148120,1773177042284,-1250.51,0.00019726,2]
[408148121,1773177042295,-1250.51,0.00019726,2]
[408148122,1773177042305,-1250.51,0.00019726,2]
[408148123,1773177042316,-1250.51,0.00019726,2]
[408148124,1773177042327,-1250.51,0.00019726,2]
[408148125,1773177042338,-1250.51,0.00019726,2]
[408148126,1773177042349,-1250.51,0.00019726,2]
[408148127,1773177042359,-1250.51,0.00019726,2]
[408148128,1773177042370,-1250.51,0.00019726,2]
[408148129,1773177042381,-1250.51,0.00019726,2]
[408148130,1773177042392,-1250.51,0.00019726,2]
[408148131,1773177042403,-1250.51,0.00019726,2]
[408148132,1773177042413,-1250.51,0.00019726,2]
[408148133,1773177042424,-1250.51,0.00019726,2]
[408148134,1773177042436,-1250.51,0.00019726,2]
[408148135,1773177042447,-1250.51,0.00019726,2]
[408148136,1773177042457,-1250.51,0.00019726,2]
[408148137,1773177042468,-1250.51,0.00019726,2]
[408148138,1773177042479,-1250.51,0.00019726,2]
[408148139,1773177042490,-1250.51,0.00019726,2]
[408148140,1773177042501,-1250.51,0.00019726,2]
[408148141,1773177042514,-1250.68103818,0.00019726,2]
[408148142,1773177042525,-500.0,0.00019726,2]
[408148143,1773177042536,-500.0,0.00019726,2]
[408148144,1773177042549,-524.54846384,0.00019726,2]
[408148146,1773177042560,-500.0,0.00019726,2]
[408148148,1773177042571,-500.0,0.00019726,2]
[408148149,1773177042582,-500.0,0.00019726,2]
[408148150,1773177042594,-243.10314305,0.00019726,2]
[408148151,1773177042605,-300.0,0.00019726,2]
[408148153,1773177042615,-300.0,0.00019726,2]
[408148155,1773177042626,-300.0,0.00019726,2]
[408148157,1773177042638,-300.0,0.00019726,2]
[408148158,1773177042651,-300.0,0.00019726,2]
[408148159,1773177042662,-300.0,0.00019726,2]
[408148160,1773177042673,-300.0,0.00019726,2]
[408148161,1773177042683,-300.0,0.00019726,2]
[408148162,1773177042694,-300.0,0.00019726,2]
[408148163,1773177042705,-300.0,0.00019726,2]
[408148164,1773177042716,-300.0,0.00019726,2]
[408148165,1773177042727,-300.0,0.00019726,2]
[408148166,1773177042739,-302.3241753,0.00019726,2]
[408148168,1773177042749,-736.07,0.00019726,2]
[408148169,1773177042760,-736.07,0.00019726,2]
[408148170,1773177042772,-736.07,0.00019726,2]
[408148171,1773177042783,-736.07,0.00019726,2]
[408148173,1773177042794,-736.07,0.00019726,2]
[408148175,1773177042805,-736.07,0.00019726,2]
[408148176,1773177042816,-736.07,0.00019726,2]
[408148177,1773177042826,-736.07,0.00019726,2]
[408148178,1773177042837,-736.07,0.00019726,2]
[408148179,1773177042848,-736.07,0.00019726,2]
[408148180,1773177042859,-736.07,0.00019726,2]
[408148181,1773177042870,-736.07,0.00019726,2]
[408148182,1773177042880,-736.07,0.00019726,2]
[408148183,1773177042892,-736.07,0.00019726,2]
[408148184,1773177042902,-736.07,0.00019726,2]
[408148185,1773177042913,-736.07,0.00019726,2]
[408148186,1773177042924,-736.07,0.00019726,2]
[408148187,1773177042935,-736.07,0.00019726,2]
[408148188,1773177042946,-736.07,0.00019726,2]
[408148189,1773177042958,-736.07,0.00019726,2]
[408148190,1773177042970,-736.07,0.00019726,2]
[408148191,1773177042983,-736.07,0.00019726,2]
[408148192,1773177042995,-736.07,0.00019726,2]
[408148193,1773177043006,-736.30298099,0.00019726,2]
[408148194,1773177043019,-787.0,0.00019726,2]
[408148195,1773177043029,-200.0,0.00019745,2]
[408148196,1773177043040,-250.0,0.00019758,2]
[408148197,1773177043051,-150.0,0.00019758,2]
[408148198,1773177043062,-270.0,0.00019758,2]
[408148199,1773177043073,-200.0,0.00019758,2]
[408148200,1773177043085,-150.166,0.00019758,2]
[408148201,1773177043096,-150.0,0.00019758,2]
[408148202,1773177043108,-619.0,0.00019758,2]
[408148203,1773177043119,-3504.0,0.00019758,2]
[408148204,1773177043131,-1042.0,0.00019758,2]
[408148205,1773177043143,-1279.0,0.00019758,2]
[408148206,1773177043155,-271.641,0.00019758,2]
[408148208,1773177043166,-922.0,0.00019758,2]
[408148209,1773177043177,-1213.0,0.00019758,2]
[408148210,1773177043188,-414.0,0.00019758,2]
[408148211,1773177043199,-5995.0,0.00019758,2]
[408148212,1773177043211,-500.0,0.00019778,2]
[408148213,1773177043221,-500.0,0.00019778,2]
[408148214,1773177043232,-500.0,0.00019778,2]
[408148215,1773177043243,-500.0,0.00019778,2]
[408148216,1773177043254,-505.89870401,0.00019778,2]
[408148223,1773177043728,-150.0,0.00019778,2]
[408148224,1773177043916,-500.0,0.00019781,7]
[408148225,1773177043951,-250.0,0.00019782,2]
[408148226,1773177043969,-250.0,0.00019799,2]
[408148227,1773177043979,-510.0,0.000198,4]
[408148228,1773177043988,-300.0,0.000198,7]
[408148229,1773177043997,-1000.0,0.00019822,2]
[408148230,1773177044006,-500.0,0.00019833,2]
[408148231,1773177044016,-500.0,0.00019833,2]
[408148232,1773177044025,-500.0,0.00019833,2]
[408148233,1773177044034,-500.0,0.00019833,2]
[408148234,1773177044044,-150.0,0.00019833,2]
[408148235,1773177044053,-250.0,0.00019844,2]
[408148236,1773177044063,-350.0,0.00019859,2]
[408148237,1773177044073,-250.0,0.00019864,2]
[408148238,1773177044082,-216.911124,0.00019871,2]
[408148239,1773177044092,-631.75115983,0.00019887,2]
[408148240,1773177044101,-500.0,0.00019887,2]
[408148241,1773177044110,-544.737577,0.00019887,2]
[408148242,1773177044119,-150.0,0.00019887,2]
[408148243,1773177044129,-500.0,0.00019899,2]
[408148244,1773177044138,-3000.0,0.00019899,2]
[408148245,1773177044148,-5800.0,0.000199,2]
[408148246,1773177044157,-4473.8803,0.000199,2]
[408148247,1773177044167,-196.35757158,0.000199,2]